Cogmind - Beta 12 @@@ ROGUE MODE // 2023.11.17 @ 17:42:11 Player: ButtBot Result: Destroyed by G-34 Mercenary with Small Laser Performance ------------- Evolutions (0) 0 Regions Visited (1) 200 Robots Destroyed (26) 130 Value Destroyed (520) 520 Prototype IDs (0) 0 Alien Tech Used (0) 0 Bonus (0) 0 TOTAL SCORE: 850 Bonus ------- None Cogmind --------- Core Integrity 0/250 Matter 300/300 Energy 147/250 System Corruption 0% Temperature Cool (6) Movement Walking (120) Location -10/Materials Parts ------- > --- POWER (1) -------- Ion Engine > --- PROPULSION (2) --- Aluminum Leg Aluminum Leg > --- UTILITY (2) ------ Improved Heat Sink Medium Storage Unit > --- WEAPON (2) ------- Heavy Hammer > --- INVENTORY (10) --- Aluminum Leg Weight Redist. System Visual Processing Unit Sensor Array Signal Interpreter Small Laser Heavy Hammer Heavy Hammer Peak State ------------ > --- POWER ------------ Light Nuclear Core > --- PROPULSION ------- Aluminum Leg Aluminum Leg > --- UTILITY ---------- Improved Heat Sink Small Storage Unit > --- WEAPON ----------- Heavy Hammer Heavy Hammer > --- INVENTORY -------- Ion Engine Aluminum Leg Aluminum Leg Weight Redist. System Visual Processing Unit Sensor Array Signal Interpreter Small Laser [Rating: 14] Favorites ----------- Power Light Nuclear Core Engine Ion Engine Power Core Light Nuclear Core Propulsion Aluminum Leg Leg Aluminum Leg Utility Small Storage Unit Device Improved Heat Sink Storage Small Storage Unit Weapon Light Assault Rifle Energy Gun Particle Gun Ballistic Gun Light Assault Rifle Launcher Grenade Launcher Impact Weapon Heavy Hammer Build | -11 -10 ------- Run | Jun Mat Slots Evolved . | . . Power . | . . Propulsion . | . . Utility . | . . Weapon . | . . Parts Attached 20 | 5 15 Power 3 | 1 2 Engine 2 | 1 1 Core 1 | . 1 Reactor . | . . Propulsion 6 | 1 5 Treads . | . . Leg 6 | 1 5 Wheel . | . . Hover . | . . Flight . | . . Utility 3 | 1 2 Device 1 | . 1 Storage 2 | 1 1 Processor . | . . Hackware . | . . Protection . | . . Artifact . | . . Weapon 8 | 2 6 Energy Gun 4 | 1 3 Energy Cannon . | . . Ballistic Gun 1 | 1 . Ballistic Cannon . | . . Launcher 1 | . 1 Special Weapon . | . . Impact Weapon 2 | . 2 Slashing Weapon . | . . Piercing Weapon . | . . Special Melee Weapon . | . . Unidentified Prototypes . | . . Parts Lost 3 | . 3 Power 1 | . 1 Propulsion 1 | . 1 Utility . | . . Weapon 1 | . 1 Highest Loss Streak 1 | . 1 To Critical Strikes . | . . Average Slot Usage (%) 93 | . 93 Engine 2 | . 2 Core 11 | . 11 Leg 28 | . 28 Device 11 | . 11 Storage 14 | . 14 Energy Gun 9 | . 9 Ballistic Gun 9 | . 9 Impact Weapon 6 | . 6 Naked Turns . | . . Heaviest Build 22 | 13 22 Greatest Support 20 | 10 20 Greatest Overweight (x) 1 | 1 1 Average Overweight (x) . | . . Largest Inventory Capacity 10 | 8 10 Average Capacity 8 | 7 8 Most Carried 10 | 3 10 Average Carried 7 | 2 7 Final Capacity 10 | 8 10 Final Carried 8 | 3 8 Class Distribution -------------------- 67% | Scavenger-Mutant 32% | Mutant Dominant Class ---------------- Scavenger-Mutant | -10/Materials Resources | -11 -10 ----------- Run | Jun Mat Matter Collected 475 | 170 305 Remotely . | . . Salvage Created 832 | . 832 Parts 45 | . 45 Haulers Intercepted 2 | . 2 Recyclers Shooed 2 | . 2 Parts Field Recycled . | . . Retrieved Matter . | . . Parts Self-Destructed . | . . Prevented . | . . Kills | -11 -10 ------- Run | Jun Mat Combat Hostiles Destroyed 16 | . 16 Melee 4 | . 4 Guns 7 | . 7 AOE 2 | . 2 Classes Destroyed 8 | . 8 Worker 1 | . 1 Builder 1 | . 1 Tunneler 1 | . 1 Hauler 2 | . 2 Recycler 2 | . 2 Watcher 3 | . 3 Swarmer 6 | . 6 Grunt 10 | . 10 Best Kill Streak 4 | . 4 Combat Bots Only 3 | . 3 Max Kills in Single Turn 3 | . 3 Gunslinging . | . . Exploded 1 | . 1 Melee 1 | . 1 Uniques/NPCs Destroyed . | . . Combat | -11 -10 -------- Run | Jun Mat Damage Taken 993 | . 993 Core 255 | . 255 Absorbed by Shields . | . . Core Remaining (%) 100 | 100 . Volleys Fired 47 | . 47 Largest 2 | . 2 Hottest 70 | . 70 Shots Fired 92 | . 92 Gun 88 | . 88 Cannon . | . . Launcher 4 | . 4 Special . | . . Kinetic 47 | . 47 Thermal 41 | . 41 Explosive 4 | . 4 Electromagnetic . | . . Robot Hit Streak 9 | . 9 Robot Miss Streak 6 | . 6 Penetration Max . | . . Secondary Targets 1 | . 1 Max Gunslinging Chain 1 | . 1 Shots Hit Robots 83 | . 83 Core Hits 33 | . 33 Critical Kills . | . . Critical Parts Destroyed 2 | . 2 Critical Strikes 3 | . 3 Burn 1 | . 1 Smash 2 | . 2 Melee Attacks 35 | . 35 Impact 35 | . 35 Slashing . | . . Piercing . | . . Sneak Attacks 3 | . 3 Combat Hostiles . | . . Follow-up Attacks 1 | . 1 Damage Inflicted 2152 | 1 2151 Guns 565 | . 565 Cannons . | . . Explosions 277 | . 277 Melee 1272 | . 1272 Ramming 38 | 1 37 Kinetic 270 | . 270 Thermal 295 | . 295 Explosive 277 | . 277 Electromagnetic . | . . Impact 1272 | . 1272 Slashing . | . . Piercing . | . . Highest Corruption . | . . Average Corruption . | . . Corruption Purged . | . . Corruption Blocked . | . . Overload Shots . | . . Overflow Damage 319 | . 319 Projectiles . | . . Explosions 9 | . 9 Melee 310 | . 310 Knockbacks 7 | . 7 Impact 7 | . 7 Kinetic . | . . Secondary . | . . Self-Inflicted Damage 15 | . 15 Shots 1 | . 1 Rammed . | . . Targets Rammed 7 | 1 6 Kicked 7 | 1 6 Crushed . | . . Highest Temperature 200 | . 200 Average Temperature 64 | . 64 Received Heat Transfer 330 | . 330 Siege Activations . | . . Robots Corrupted . | . . Combat Hostiles . | . . Parts Fried 7 | . 7 Impact Corruptions 11 | . 11 Robots Melted . | . . Combat Hostiles . | . . Parts Melted 1 | . 1 Heat Transferred 926 | . 926 Parts Sabotaged . | . . Parts Stolen . | . . Parts Stripped . | . . Power Chain Reactions . | . . Missiles Intercepted . | . . Alert | -11 -10 ------- Run | Jun Mat Peak Influence 331 | . 331 Initial . | . . Average 111 | . 117 Maximum Alert Level 1 | . 1 Low Security (%) 87 | 100 87 Level 1 12 | . 12 Level 2 . | . . Level 3 . | . . Level 4 . | . . Level 5 . | . . High Security . | . . Max Security . | . . Squads Dispatched 5 | . 5 Investigation 2 | . 2 Extermination . | . . Reinforcement 3 | . 3 Assault . | . . Garrison . | . . Intercept . | . . Searches Triggered . | . . Construction Impeded . | . . Haulers Reinforced . | . . Active Scanning Responses . | . . Cargo Convoy Interrupts . | . . Stealth | -11 -10 --------- Run | Jun Mat Distress Signals 2 | . 2 Communications Jammed . | . . Distress Signals . | . . Times Spotted 32 | . 32 Peak Tracking Total 5 | . 5 Tactical Retreats 1 | . 1 Traps | -11 -10 ------- Run | Jun Mat Traps Triggered 3 | . 3 Indirectly . | . . Trap Hack Attempts . | . . Triggered . | . . Disarmed . | . . Reprogrammed . | . . Reused . | . . Traps Extracted . | . . Installed . | . . Triggered . | . . Machines | -11 -10 ---------- Run | Jun Mat Machines Disabled 4 | . 4 Max in Single Turn 1 | . 1 Machines Repaired . | . . Machines Sabotaged . | . . Overloaded Fab Kills . | . . Hacking | -11 -10 --------- Run | Jun Mat Machines Accessed 5 | . 5 Terminals 5 | . 5 Fabricators . | . . Repair Stations . | . . Recycling Units . | . . Scanalyzers . | . . Garrison Access . | . . Total Hacks 10 | . 10 Successful 3 | . 3 Failed 7 | . 7 Catastrophic 1 | . 1 Database Lockouts . | . . Manual 1 | . 1 Terminals 10 | . 10 Fabricators . | . . Repair Stations . | . . Recycling Units . | . . Scanalyzers . | . . Garrison Access . | . . Terminal Hacks 3 | . 3 Emergency Access Points 1 | . 1 Transport Status 1 | . 1 Zone Layout 1 | . 1 Fabricator Hacks . | . . Repair Station Hacks . | . . Recycling Unit Hacks . | . . Scanalyzer . | . . Garrison Access Hacks . | . . Unauthorized Hacks . | . . Terminals . | . . Fabricators . | . . Repair Stations . | . . Recycling Units . | . . Scanalyzers . | . . Garrison Access . | . . Data Cores Recovered . | . . Used . | . . Hacking Detections 5 | . 5 Full Trace Events . | . . Feedback Events . | . . Feedback Blocked . | . . Robot Schematics Acquired . | . . Robots Built . | . . Authchips . | . . Time . | . . Total Robot Build Rating . | . . Part Schematics Acquired . | . . Parts Built . | . . Authchips . | . . Time . | . . Total Part Build Rating . | . . Parts Repaired . | . . Time . | . . Parts Recycled . | . . Recycled Matter . | . . Retrieved Matter . | . . Retrieved Components . | . . Parts Scanalyzed . | . . Part Schematics Acquired . | . . Parts Damaged . | . . Bothacking | -11 -10 ------------ Run | Jun Mat Used RIF Installer . | . . Robots Hacked . | . . Non-combat . | . . Combat . | . . Robot Hacks Applied . | . . Relay Couplers Released . | . . Fabnet Peak Effective % . | . . Robots Rewired . | . . Allies Hacked . | . . Hacks Repelled . | . . Allies | -11 -10 -------- Run | Jun Mat Total Allies . | . . Largest Group . | . . Highest-Rated Group . | . . Highest-Rated Ally . | . . Total Orders . | . . Ally Attacks . | . . Total Damage . | . . Kills . | . . Allies Corrupted . | . . Allies Melted . | . . Intel | -11 -10 ------- Run | Jun Mat Robot Analysis Total . | . . Derelict Logs Recovered . | . . Drone Launches . | . . Drone Recoveries . | . . Exploration | -11 -10 ------------- Run | Jun Mat Turns Passed 1570 | 81 1489 Spaces Moved 792 | 40 752 Core 2 | 2 . Treads . | . . Legs 790 | 38 752 Wheels . | . . Hover . | . . Flight . | . . Fastest Speed 50 | 50 120 Average Speed 122 | 175 120 Slowest Speed 190 | 190 190 Overloaded Moves . | . . Propulsion Burnouts . | . . Robots Hopped . | . . Cave-ins Triggered . | . . Exploration Rate (%) 47 | 4 90 Regions Visited 1 Branch Regions . Pre-discovered Areas . | . . Known Exits Taken . | . . Unknown Exits Taken 1 | 1 . Scrap Searched . | . . Spaces Dug . | . . Terrain Destroyed 17 | . 17 Melee . | . . Projectile . | . . AOE 17 | . 17 Terrain Rammed . | . . Walls Destroyed . | . . Machines Disabled . | . . Actions | -11 -10 --------- Run | Jun Mat Total 1247 | 48 1199 Wait 321 | . 321 Move 791 | 39 752 Hop . | . . Pick Up 15 | 3 12 Fast Attach 8 | 5 3 Attach 4 | . 4 Detach 1 | . 1 Swap 8 | . 8 Drop 12 | . 12 Fire 47 | . 47 Melee 33 | . 33 Ram . | . . Kick 7 | 1 6 Crush . | . . Escape Stasis . | . . Rewire . | . . Trap . | . . Miscellaneous . | . . Route ------- -11/Junkyard -10/Materials (discovered 3 exits: [*Mat x2] / [*Min]) History --------- Turn | Location | Event 21 | -11/Junkyard | Discovered new exit (range 16) 82 | -11/Junkyard | Entered Materials 302 | -10/Materials | Build established: Mutant 658 | -10/Materials | Build established: Scavenger-Mutant 783 | -10/Materials | Discovered new exit (range 16) 895 | -10/Materials | Discovered new exit (range 11) 1178 | -10/Materials | Discovered new exit (range 15) 1476 | -10/Materials | Core integrity fell below 50% 1558 | -10/Materials | Core integrity fell below 20% 1571 | -10/Materials | Destroyed by G-34 Mercenary with Small Laser Last Messages --------------- 01520_ Triggered Explosive Trap. 01520_ An explosion rips through the floor. 01520_ Aluminum Leg destroyed. 01524_ K-01 Serf cleans the Matter Pump. 01526_ Terminal disabled. 01533_ K-01 Serf cleans the Matter Pump. 01536_ U-05 Engineer lays Concrete. 01537_ U-05 Engineer builds a Wall. 01541_ U-05 Engineer lays Concrete. 01547_ G-34 Mercenary knocked back. 01548_ U-05 Engineer lays Concrete. 01555_ G-34 Mercenary suffers critical hit (Smash). 01555_ Destroyed Aluminum Leg. 01555_ G-34 Mercenary system corrupted by crushing effect. 01556_ U-05 Engineer lays Concrete. 01556_ G-34 Mercenary IFF system glitched. 01557_ U-05 Engineer builds a Wall. 01558_ Lgt. Nuclear Core destroyed. 01558_ G-34 Mercenary destroyed. 01562_ Acquired 15 matter. Map ----- +----------------------------------------------------+ | | | | | | | | | | | | | | | | | | | | | | | | | ?????????????????????????????????????????????????? | | ?????????????????????????????????????????????????? | | ?????????????????????????????????????????????????? | | ?????????????????????????????????????????????????? | | ?????????????????????????????????????????????????? | | ?????????????????????????????????????????????????? | | ?????????????????????????????????????????????????? | | ?????????????????????????????????????????????????? | | ??????????????????#??????????????????????????????? | | ??????????????????# ?????????????????????????????? | | ??????????????????# ????????????????????????????? | | ??????????????????+ ########???????????????????? | | ??????????????????# g #???????????????????? | | ??????????????????# @ g #???????????????????? | | ??????????????????# *% #?????############### | | ??????????????????######## #?????# # """ # | | ?????????????????????????# #?????# # ""R" # | | ?????????????????????????# #?????# """ # "" " # | | ?????????????????????????# #?????# """ # # | | ?????????????????????????# #?????# """ # # | | ?????????????????????????# #?????# # # | | ?????????????????????????# ##########+######+### | | ?????????????????????????# | | ?????????????????????????# | | ????????#########???????## " "% % % | | ????????# [ #??????### """ %""" #/### | | ######### #??????#"" ^ """ """ #* | | # #??????#"Y """ """ # | | "" """ # """ #??????#"" # "" | | "" """ + """ #??????## # "" | | "T """ #] """ #???????## """ """ "" #% "" | | "" # #???????## """ """^ "" # * | | "" """ #"" #????????# """ """ """ ##+## | | """ #"Y ########## ^ ## #? | | """ #"" ##"""""""# ## #? | | ! # ##" ! ! "# """ """ """ ## #? | | ####+#####+#######"= ! ="# """ """ "" ## | | ### % % %%%% [ """ """ "" | +----------------------------------------------------+ Best States ------------- Heat Dissipation 39 Energy Generation 14 Energy Capacity 250 Matter Stores 300 Matter Capacity 300 Sight Range 16 Terrain Scan Density 10 Evasion (%) 55 Item Schematics ----------------- None Robot Schematics ------------------ None Fabricated ------------ Nothing Alien Tech Used ----------------- None Achievements -------------- None Challenges ------------ None Game ------ Seed FlakSystemSuperbattery Manual? 0 Play Time 00:15:21 Cumulative 15.4 hours Start 2023.11.17 @ 17:27:33 End 2023.11.17 @ 17:42:11 Sessions 1 Manual Loads 0 Difficulty Rogue Special Mode None Game No. 23 Rogue 23 Adventurer 0 Explorer 0 Win Type - Total 0 Types 0/0/0/0/0/0/0/0/0 Lore% 20 Gallery% 20 Achievement% 17 Wizard Run 0 Options --------- ASCII 0 Keyboard 1 Movement Vi Keybinds 0 Fullscreen 1 Font 24/Smallcaps Map View 183x50 Tactical HUD 1 Map Filters NONE Filters NONE Steam 1 RUN: 806cf57d-326f-4b2d-aaaa-bba5d32fdbeb